[Event "Titled Tuesday Blitz July 4 Late 2023"]
[White "Sanal, Vahap"]
[Black "Tomb, Maroun"]
[WhiteFideId "6300545"]
[BlackFideId "5300398"]
[WhiteElo "2893"]
[BlackElo "2544"]
[Result "1-0"]
[Round "2"]
[TimeControl "180+2"]
[Date "2023.07.04"]
[WhiteClock "0:01:03"]
[BlackClock "0:00:00"]
[Board "30"]

1. c4 {[%clk 0:03:00]}  d6 {[%clk 0:02:58]} 2. d4 {[%clk 0:02:59]}  Nf6 {[%clk 0:02:57]} 3. Nf3 {[%clk 0:02:59]}  Nbd7 {[%clk 0:02:58]} 4. Nc3 {[%clk 0:02:58]}  e5 {[%clk 0:02:58]} 5. e4 {[%clk 0:02:58]}  Be7 {[%clk 0:02:58]} 6. Be2 {[%clk 0:02:59]}  c6 {[%clk 0:02:57]} 7. O-O {[%clk 0:02:59]}  Qc7 {[%clk 0:02:57]} 8. Qc2 {[%clk 0:02:57]}  O-O {[%clk 0:02:57]} 9. h3 {[%clk 0:02:57]}  a5 {[%clk 0:02:51]} 10. Be3 {[%clk 0:02:57]}  Re8 {[%clk 0:02:51]} 11. d5 {[%clk 0:02:54]}  cxd5 {[%clk 0:02:47]} 12. cxd5 {[%clk 0:02:51]}  Nc5 {[%clk 0:02:22]} 13. Nb5 {[%clk 0:02:50]}  Qb6 {[%clk 0:02:22]} 14. Bxc5 {[%clk 0:02:44]}  dxc5 {[%clk 0:02:22]} 15. Nxe5 {[%clk 0:02:42]}  Bf8 {[%clk 0:01:56]} 16. Nf3 {[%clk 0:02:41]}  Nxe4 {[%clk 0:01:50]} 17. Bd3 {[%clk 0:02:37]}  Nf6 {[%clk 0:01:48]} 18. Rad1 {[%clk 0:02:29]}  Bd7 {[%clk 0:01:48]} 19. Nc3 {[%clk 0:02:28]}  a4 {[%clk 0:01:44]} 20. Ng5 {[%clk 0:02:27]}  g6 {[%clk 0:01:34]} 21. Nge4 {[%clk 0:02:17]}  Bg7 {[%clk 0:01:28]} 22. Rd2 {[%clk 0:02:05]}  Re5 {[%clk 0:01:13]} 23. Nxf6+ {[%clk 0:01:56]}  Bxf6 {[%clk 0:01:13]} 24. Be4 {[%clk 0:01:51]}  c4 {[%clk 0:01:06]} 25. d6 {[%clk 0:01:48]}  Be6 {[%clk 0:00:45]} 26. d7 {[%clk 0:01:44]}  Rd8 {[%clk 0:00:45]} 27. Rfd1 {[%clk 0:01:45]}  a3 {[%clk 0:00:40]} 28. bxa3 {[%clk 0:01:42]}  Qc5 {[%clk 0:00:33]} 29. Bxb7 {[%clk 0:01:39]}  Qxa3 {[%clk 0:00:34]} 30. Ne4 {[%clk 0:01:34]}  Bg7 {[%clk 0:00:31]} 31. Bd5 {[%clk 0:01:32]}  Bf5 {[%clk 0:00:30]} 32. Qxc4 {[%clk 0:01:30]}  Rxd7 {[%clk 0:00:25]} 33. Ng5 {[%clk 0:01:26]}  Qf8 {[%clk 0:00:09]} 34. Bxf7+ {[%clk 0:01:19]}  Rxf7 {[%clk 0:00:10]} 35. Rd8 {[%clk 0:01:19]}  Re8 {[%clk 0:00:07]} 36. Nxf7 {[%clk 0:01:20]}  Be6 {[%clk 0:00:03]} 37. Qxe6 {[%clk 0:01:05]}  Rxe6 {[%clk 0:00:01]} 38. Rxf8+ {[%clk 0:01:06]}  Bxf8 {[%clk 0:00:02]} 39. Ng5 {[%clk 0:01:05]}  Ra6 {[%clk 0:00:00]} 40. Rd2 {[%clk 0:01:03]} 1-0


[Site "https://www.chess.com"]

[Event "Titled Tuesday Blitz July 4 Late 2023"]
[White "Zhigalko, Sergei"]
[Black "Fiol, Fabrice"]
[WhiteFideId "13502956"]
[BlackFideId "611670"]
[WhiteElo "2887"]
[BlackElo "2542"]
[Result "1-0"]
[Round "2"]
[TimeControl "180+2"]
[Date "2023.07.04"]
[WhiteClock "0:00:42"]
[BlackClock "0:00:43"]
[Board "32"]

1. e4 {[%clk 0:03:00]}  c5 {[%clk 0:02:59]} 2. Nf3 {[%clk 0:03:00]}  e6 {[%clk 0:03:00]} 3. c3 {[%clk 0:03:00]}  d5 {[%clk 0:02:54]} 4. e5 {[%clk 0:03:00]}  d4 {[%clk 0:02:54]} 5. Bd3 {[%clk 0:03:00]}  Bd7 {[%clk 0:02:53]} 6. O-O {[%clk 0:03:00]}  Bc6 {[%clk 0:02:54]} 7. b4 {[%clk 0:03:00]}  b6 {[%clk 0:02:43]} 8. b5 {[%clk 0:02:46]}  Bb7 {[%clk 0:02:39]} 9. Na3 {[%clk 0:02:46]}  Ne7 {[%clk 0:02:36]} 10. Nc4 {[%clk 0:02:44]}  Ng6 {[%clk 0:02:33]} 11. Re1 {[%clk 0:02:42]}  Be7 {[%clk 0:02:32]} 12. cxd4 {[%clk 0:02:30]}  cxd4 {[%clk 0:02:31]} 13. Be4 {[%clk 0:02:31]}  Bxe4 {[%clk 0:02:26]} 14. Rxe4 {[%clk 0:02:32]}  Qc7 {[%clk 0:02:18]} 15. Rxd4 {[%clk 0:02:27]}  O-O {[%clk 0:02:16]} 16. Bb2 {[%clk 0:02:19]}  Nd7 {[%clk 0:02:12]} 17. Rc1 {[%clk 0:02:17]}  Bc5 {[%clk 0:02:03]} 18. Rg4 {[%clk 0:02:09]}  f5 {[%clk 0:02:01]} 19. exf6 {[%clk 0:02:05]}  Nxf6 {[%clk 0:02:01]} 20. Bxf6 {[%clk 0:01:57]}  Rxf6 {[%clk 0:02:02]} 21. d4 {[%clk 0:01:57]}  Rd8 {[%clk 0:01:31]} 22. Qe1 {[%clk 0:01:46]}  Rxf3 {[%clk 0:01:16]} 23. gxf3 {[%clk 0:01:28]}  Bxd4 {[%clk 0:01:13]} 24. Qxe6+ {[%clk 0:01:28]}  Kh8 {[%clk 0:01:14]} 25. Rxd4 {[%clk 0:01:24]}  Rf8 {[%clk 0:01:00]} 26. Qe3 {[%clk 0:01:08]}  Qc8 {[%clk 0:00:49]} 27. Ne5 {[%clk 0:01:01]}  Qh3 {[%clk 0:00:48]} 28. Nxg6+ {[%clk 0:00:58]}  hxg6 {[%clk 0:00:49]} 29. Rg4 {[%clk 0:00:42]}  Rxf3 {[%clk 0:00:45]} 30. Qe8+ {[%clk 0:00:42]}  Kh7 {[%clk 0:00:43]} 31. Qxg6+ {[%clk 0:00:42]} 1-0


[Site "https://www.chess.com"]

[Event "Titled Tuesday Blitz July 4 Late 2023"]
[White "Shubenkova, Veronika"]
[Black "Moroni, Luca Jr"]
[WhiteFideId "44124040"]
[BlackFideId "865834"]
[WhiteElo "2539"]
[BlackElo "2854"]
[Result "1-0"]
[Round "2"]
[TimeControl "180+2"]
[Date "2023.07.04"]
[WhiteClock "0:00:16"]
[BlackClock "0:00:45"]
[Board "34"]

1. e4 {[%clk 0:03:00]}  e6 {[%clk 0:02:57]} 2. d4 {[%clk 0:02:59]}  d5 {[%clk 0:02:57]} 3. exd5 {[%clk 0:02:59]}  exd5 {[%clk 0:02:57]} 4. Nf3 {[%clk 0:03:00]}  Nc6 {[%clk 0:02:57]} 5. c3 {[%clk 0:03:00]}  Bd6 {[%clk 0:02:56]} 6. Bd3 {[%clk 0:03:00]}  Nge7 {[%clk 0:02:53]} 7. O-O {[%clk 0:02:59]}  Bg4 {[%clk 0:02:53]} 8. Bg5 {[%clk 0:02:58]}  f6 {[%clk 0:02:52]} 9. Bh4 {[%clk 0:02:58]}  Qd7 {[%clk 0:02:52]} 10. Nbd2 {[%clk 0:02:57]}  O-O-O {[%clk 0:02:49]} 11. a4 {[%clk 0:02:57]}  g5 {[%clk 0:02:47]} 12. Bg3 {[%clk 0:02:57]}  h5 {[%clk 0:02:46]} 13. Bxd6 {[%clk 0:02:56]}  Qxd6 {[%clk 0:02:47]} 14. b4 {[%clk 0:02:56]}  Rde8 {[%clk 0:02:44]} 15. a5 {[%clk 0:02:56]}  h4 {[%clk 0:02:39]} 16. h3 {[%clk 0:02:55]}  Bh5 {[%clk 0:02:36]} 17. b5 {[%clk 0:02:51]}  Nd8 {[%clk 0:02:35]} 18. b6 {[%clk 0:02:47]}  a6 {[%clk 0:02:35]} 19. bxc7 {[%clk 0:02:46]}  Qxc7 {[%clk 0:02:35]} 20. Qb1 {[%clk 0:02:38]}  g4 {[%clk 0:02:32]} 21. Bf5+ {[%clk 0:02:20]}  Nxf5 {[%clk 0:02:21]} 22. Qxf5+ {[%clk 0:02:21]}  Qd7 {[%clk 0:02:18]} 23. hxg4 {[%clk 0:02:20]}  Bxg4 {[%clk 0:02:14]} 24. Qf4 {[%clk 0:02:14]}  Reg8 {[%clk 0:02:07]} 25. c4 {[%clk 0:02:11]}  Ne6 {[%clk 0:02:04]} 26. Qh2 {[%clk 0:01:59]}  h3 {[%clk 0:02:00]} 27. g3 {[%clk 0:01:38]}  dxc4 {[%clk 0:01:59]} 28. Nxc4 {[%clk 0:01:36]}  Bxf3 {[%clk 0:01:58]} 29. Nb6+ {[%clk 0:01:36]}  Kd8 {[%clk 0:01:58]} 30. Nxd7 {[%clk 0:01:29]}  Kxd7 {[%clk 0:01:59]} 31. d5 {[%clk 0:01:26]}  Ng5 {[%clk 0:01:57]} 32. Ra3 {[%clk 0:01:21]}  Bg2 {[%clk 0:01:51]} 33. f4 {[%clk 0:01:14]}  Ne4 {[%clk 0:01:49]} 34. Rb1 {[%clk 0:01:06]}  Rc8 {[%clk 0:01:46]} 35. Rxb7+ {[%clk 0:01:04]}  Kd8 {[%clk 0:01:44]} 36. Rb1 {[%clk 0:00:59]}  Rh5 {[%clk 0:01:43]} 37. g4 {[%clk 0:00:58]}  Rxd5 {[%clk 0:01:42]} 38. f5 {[%clk 0:00:58]}  Nd2 {[%clk 0:01:38]} 39. Re1 {[%clk 0:00:41]}  Kd7 {[%clk 0:01:30]} 40. Qf4 {[%clk 0:00:37]}  Rc2 {[%clk 0:01:04]} 41. Qa4+ {[%clk 0:00:36]}  Rc6 {[%clk 0:01:02]} 42. Qf4 {[%clk 0:00:26]}  Rc2 {[%clk 0:00:56]} 43. Rae3 {[%clk 0:00:22]}  Re5 {[%clk 0:00:55]} 44. Rxe5 {[%clk 0:00:19]}  fxe5 {[%clk 0:00:56]} 45. Qa4+ {[%clk 0:00:18]}  Rc6 {[%clk 0:00:55]} 46. Rd1 {[%clk 0:00:18]}  Kc7 {[%clk 0:00:46]} 47. Rxd2 {[%clk 0:00:17]}  e4 {[%clk 0:00:47]} 48. Rxg2 {[%clk 0:00:16]}  hxg2 {[%clk 0:00:46]} 49. Qxe4 {[%clk 0:00:16]}  Rd6 {[%clk 0:00:45]} 50. Kxg2 {[%clk 0:00:16]} 1-0


[Site "https://www.chess.com"]

[Event "Titled Tuesday Blitz July 4 Late 2023"]
[White "Henriquez Villagra, Cristobal"]
[Black "Osmak, Yuliia"]
[WhiteFideId "3409350"]
[BlackFideId "14101602"]
[WhiteElo "2851"]
[BlackElo "2539"]
[Result "1-0"]
[Round "2"]
[TimeControl "180+2"]
[Date "2023.07.04"]
[WhiteClock "0:00:05"]
[BlackClock "0:00:00"]
[Board "35"]

1. Nf3 {[%clk 0:03:00]}  c5 {[%clk 0:02:57]} 2. d3 {[%clk 0:02:51]}  Nc6 {[%clk 0:02:57]} 3. e4 {[%clk 0:02:51]}  d6 {[%clk 0:02:52]} 4. Be2 {[%clk 0:02:51]}  Nf6 {[%clk 0:02:50]} 5. O-O {[%clk 0:02:51]}  g6 {[%clk 0:02:49]} 6. Re1 {[%clk 0:02:51]}  Bg7 {[%clk 0:02:49]} 7. Bf1 {[%clk 0:02:50]}  Bg4 {[%clk 0:02:47]} 8. Nbd2 {[%clk 0:02:50]}  O-O {[%clk 0:02:46]} 9. h3 {[%clk 0:02:49]}  Bxf3 {[%clk 0:02:45]} 10. Nxf3 {[%clk 0:02:50]}  b5 {[%clk 0:02:43]} 11. c3 {[%clk 0:02:44]}  Nd7 {[%clk 0:02:40]} 12. d4 {[%clk 0:02:39]}  b4 {[%clk 0:02:39]} 13. Be3 {[%clk 0:02:19]}  a5 {[%clk 0:02:32]} 14. Rc1 {[%clk 0:02:13]}  Rb8 {[%clk 0:02:18]} 15. Qd2 {[%clk 0:01:40]}  Qb6 {[%clk 0:02:13]} 16. Red1 {[%clk 0:01:39]}  Rfc8 {[%clk 0:02:07]} 17. Bc4 {[%clk 0:01:11]}  Qc7 {[%clk 0:01:35]} 18. dxc5 {[%clk 0:01:05]}  Nxc5 {[%clk 0:01:34]} 19. Bxc5 {[%clk 0:00:57]}  dxc5 {[%clk 0:01:32]} 20. Qd5 {[%clk 0:00:57]}  Ne5 {[%clk 0:01:12]} 21. Nxe5 {[%clk 0:00:57]}  e6 {[%clk 0:01:12]} 22. Qd3 {[%clk 0:00:30]}  Bxe5 {[%clk 0:01:10]} 23. g3 {[%clk 0:00:27]}  Rd8 {[%clk 0:01:05]} 24. Qf3 {[%clk 0:00:25]}  bxc3 {[%clk 0:01:04]} 25. bxc3 {[%clk 0:00:26]}  Rb2 {[%clk 0:00:59]} 26. Rxd8+ {[%clk 0:00:25]}  Qxd8 {[%clk 0:00:59]} 27. Rd1 {[%clk 0:00:26]}  Rd2 {[%clk 0:00:59]} 28. Rb1 {[%clk 0:00:19]}  a4 {[%clk 0:00:54]} 29. Rb7 {[%clk 0:00:15]}  Rd7 {[%clk 0:00:53]} 30. Rb5 {[%clk 0:00:12]}  Qc7 {[%clk 0:00:42]} 31. Qe3 {[%clk 0:00:12]}  Rd1+ {[%clk 0:00:36]} 32. Kg2 {[%clk 0:00:12]}  Bd6 {[%clk 0:00:34]} 33. h4 {[%clk 0:00:08]}  h5 {[%clk 0:00:29]} 34. Qe2 {[%clk 0:00:09]}  Ra1 {[%clk 0:00:28]} 35. Qb2 {[%clk 0:00:09]}  Re1 {[%clk 0:00:27]} 36. Qd2 {[%clk 0:00:08]}  Ra1 {[%clk 0:00:26]} 37. Qb2 {[%clk 0:00:09]}  Re1 {[%clk 0:00:26]} 38. Be2 {[%clk 0:00:03]}  Bf8 {[%clk 0:00:18]} 39. Bf3 {[%clk 0:00:04]}  Qe5 {[%clk 0:00:18]} 40. Qc2 {[%clk 0:00:04]}  Bg7 {[%clk 0:00:17]} 41. Qxa4 {[%clk 0:00:04]}  Qxc3 {[%clk 0:00:16]} 42. Rb7 {[%clk 0:00:04]}  Qa1 {[%clk 0:00:15]} 43. Qe8+ {[%clk 0:00:04]}  Kh7 {[%clk 0:00:15]} 44. Qxf7 {[%clk 0:00:05]}  Rg1+ {[%clk 0:00:15]} 45. Kh2 {[%clk 0:00:05]}  Rf1 {[%clk 0:00:13]} 46. Bg2 {[%clk 0:00:05]}  Rb1 {[%clk 0:00:10]} 47. Rd7 {[%clk 0:00:03]}  Rd1 {[%clk 0:00:08]} 48. Rc7 {[%clk 0:00:03]}  Rc1 {[%clk 0:00:08]} 49. f4 {[%clk 0:00:03]}  Rc2 {[%clk 0:00:07]} 50. e5 {[%clk 0:00:04]}  Rxg2+ {[%clk 0:00:00]} 51. Kxg2 {[%clk 0:00:05]} 1-0


[Site "https://www.chess.com"]

[Event "Titled Tuesday Blitz July 4 Late 2023"]
[White "Kantor, Gergely"]
[Black "Rottenwohrer Suarez, Juan"]
[WhiteFideId "751499"]
[BlackFideId "32068182"]
[WhiteElo "2828"]
[BlackElo "2534"]
[Result "1-0"]
[Round "2"]
[TimeControl "180+2"]
[Date "2023.07.04"]
[WhiteClock "0:00:27"]
[BlackClock "0:00:00"]
[Board "38"]

1. e4 {[%clk 0:03:00]}  c5 {[%clk 0:02:59]} 2. Nf3 {[%clk 0:03:00]}  g6 {[%clk 0:03:00]} 3. d4 {[%clk 0:02:59]}  cxd4 {[%clk 0:03:01]} 4. Nxd4 {[%clk 0:02:59]}  Nc6 {[%clk 0:03:02]} 5. c4 {[%clk 0:02:59]}  Nf6 {[%clk 0:03:02]} 6. Nc3 {[%clk 0:02:58]}  d6 {[%clk 0:03:03]} 7. f3 {[%clk 0:02:56]}  Bg7 {[%clk 0:02:53]} 8. Be3 {[%clk 0:02:56]}  O-O {[%clk 0:02:51]} 9. Be2 {[%clk 0:02:57]}  Nxd4 {[%clk 0:02:21]} 10. Bxd4 {[%clk 0:02:56]}  Be6 {[%clk 0:02:22]} 11. O-O {[%clk 0:02:53]}  Qa5 {[%clk 0:02:22]} 12. Rc1 {[%clk 0:02:35]}  Rfc8 {[%clk 0:02:22]} 13. b3 {[%clk 0:02:35]}  Nd7 {[%clk 0:02:21]} 14. Kh1 {[%clk 0:02:32]}  Bxd4 {[%clk 0:02:17]} 15. Qxd4 {[%clk 0:02:32]}  a6 {[%clk 0:02:16]} 16. f4 {[%clk 0:02:30]}  f6 {[%clk 0:02:01]} 17. f5 {[%clk 0:02:25]}  gxf5 {[%clk 0:01:51]} 18. exf5 {[%clk 0:02:23]}  Bf7 {[%clk 0:01:48]} 19. Bf3 {[%clk 0:02:22]}  Rab8 {[%clk 0:01:44]} 20. Bd5 {[%clk 0:02:18]}  Ne5 {[%clk 0:01:39]} 21. Qh4 {[%clk 0:02:07]}  b5 {[%clk 0:01:33]} 22. Bxf7+ {[%clk 0:02:07]}  Nxf7 {[%clk 0:01:32]} 23. Nd5 {[%clk 0:02:06]}  Rb7 {[%clk 0:01:28]} 24. cxb5 {[%clk 0:02:02]}  Rxc1 {[%clk 0:01:17]} 25. Rxc1 {[%clk 0:02:02]}  Qxb5 {[%clk 0:01:13]} 26. Qg4+ {[%clk 0:01:03]}  Ng5 {[%clk 0:01:11]} 27. Nf4 {[%clk 0:01:03]}  Rc7 {[%clk 0:01:02]} 28. Rd1 {[%clk 0:00:58]}  Kh8 {[%clk 0:00:50]} 29. Nh5 {[%clk 0:00:48]}  Rc5 {[%clk 0:00:33]} 30. h4 {[%clk 0:00:43]}  Rxf5 {[%clk 0:00:29]} 31. Ng3 {[%clk 0:00:35]}  Rd5 {[%clk 0:00:05]} 32. Rxd5 {[%clk 0:00:33]}  Qxd5 {[%clk 0:00:06]} 33. hxg5 {[%clk 0:00:34]}  fxg5 {[%clk 0:00:02]} 34. Nh5 {[%clk 0:00:29]}  Qc6 {[%clk 0:00:00]} 35. Qxg5 {[%clk 0:00:27]} 1-0


[Site "https://www.chess.com"]

[Event "Titled Tuesday Blitz July 4 Late 2023"]
[White "Oro, Faustino"]
[Black "Prem, Pranav"]
[WhiteFideId "20000197"]
[BlackFideId "30901057"]
[WhiteElo "2825"]
[BlackElo "2533"]
[Result "1-0"]
[Round "2"]
[TimeControl "180+2"]
[Date "2023.07.04"]
[WhiteClock "0:00:05"]
[BlackClock "0:00:00"]
[Board "40"]

1. e4 {[%clk 0:03:00]}  c5 {[%clk 0:02:59]} 2. Nf3 {[%clk 0:03:00]}  d6 {[%clk 0:02:59]} 3. d4 {[%clk 0:02:54]}  cxd4 {[%clk 0:03:00]} 4. Nxd4 {[%clk 0:02:55]}  Nf6 {[%clk 0:03:01]} 5. Nc3 {[%clk 0:02:55]}  a6 {[%clk 0:03:01]} 6. Be3 {[%clk 0:02:51]}  e5 {[%clk 0:03:01]} 7. Nf3 {[%clk 0:02:49]}  Be7 {[%clk 0:02:59]} 8. Bc4 {[%clk 0:02:49]}  O-O {[%clk 0:02:55]} 9. O-O {[%clk 0:02:48]}  b5 {[%clk 0:02:55]} 10. Bd5 {[%clk 0:02:47]}  b4 {[%clk 0:02:34]} 11. Ne2 {[%clk 0:02:21]}  Nxd5 {[%clk 0:02:09]} 12. Qxd5 {[%clk 0:02:22]}  Qc7 {[%clk 0:02:02]} 13. Ng3 {[%clk 0:00:51]}  Bb7 {[%clk 0:01:54]} 14. Qd3 {[%clk 0:00:51]}  Nd7 {[%clk 0:01:31]} 15. Nf5 {[%clk 0:00:51]}  Nf6 {[%clk 0:01:26]} 16. Nd2 {[%clk 0:00:41]}  d5 {[%clk 0:01:18]} 17. Bg5 {[%clk 0:00:40]}  dxe4 {[%clk 0:01:15]} 18. Qg3 {[%clk 0:00:39]}  Qd7 {[%clk 0:00:27]} 19. Nxe7+ {[%clk 0:00:13]}  Qxe7 {[%clk 0:00:28]} 20. Nc4 {[%clk 0:00:12]}  Qe6 {[%clk 0:00:25]} 21. Ne3 {[%clk 0:00:08]}  Kh8 {[%clk 0:00:21]} 22. Qh4 {[%clk 0:00:05]}  Nd5 {[%clk 0:00:20]} 23. Ng4 {[%clk 0:00:04]}  f6 {[%clk 0:00:17]} 24. Bd2 {[%clk 0:00:04]}  f5 {[%clk 0:00:17]} 25. Ne3 {[%clk 0:00:04]}  Nf4 {[%clk 0:00:16]} 26. Rfe1 {[%clk 0:00:03]}  Rad8 {[%clk 0:00:16]} 27. Bxb4 {[%clk 0:00:04]}  Rfe8 {[%clk 0:00:15]} 28. Rad1 {[%clk 0:00:04]}  Rxd1 {[%clk 0:00:12]} 29. Rxd1 {[%clk 0:00:05]}  Ng6 {[%clk 0:00:11]} 30. Qg5 {[%clk 0:00:05]}  f4 {[%clk 0:00:11]} 31. Nf5 {[%clk 0:00:06]}  Qc4 {[%clk 0:00:04]} 32. Nd6 {[%clk 0:00:04]}  Qe2 {[%clk 0:00:00]} 33. Re1 {[%clk 0:00:05]} 1-0


[Site "https://www.chess.com"]

[Event "Titled Tuesday Blitz July 4 Late 2023"]
[White "Bagrationi, Alexander"]
[Black "Stribuk, Artiom"]
[WhiteFideId "14104954"]
[BlackFideId "13515659"]
[WhiteElo "2530"]
[BlackElo "2810"]
[Result "0-1"]
[Round "2"]
[TimeControl "180+2"]
[Date "2023.07.04"]
[WhiteClock "0:02:15"]
[BlackClock "0:02:08"]
[Board "41"]

1. d4 {[%clk 0:02:52]}  Nf6 {[%clk 0:02:56]} 2. Nf3 {[%clk 0:02:51]}  g6 {[%clk 0:02:55]} 3. g3 {[%clk 0:02:51]}  Bg7 {[%clk 0:02:53]} 4. b3 {[%clk 0:02:51]}  d5 {[%clk 0:02:51]} 5. Bb2 {[%clk 0:02:51]}  O-O {[%clk 0:02:50]} 6. Bg2 {[%clk 0:02:52]}  c6 {[%clk 0:02:48]} 7. O-O {[%clk 0:02:52]}  Bf5 {[%clk 0:02:49]} 8. e3 {[%clk 0:02:52]}  a5 {[%clk 0:02:44]} 9. a4 {[%clk 0:02:50]}  Nbd7 {[%clk 0:02:34]} 10. Qe2 {[%clk 0:02:49]}  Qb6 {[%clk 0:02:21]} 11. c4 {[%clk 0:02:48]}  Qxb3 {[%clk 0:02:16]} 12. Rc1 {[%clk 0:02:34]}  Bd3 {[%clk 0:02:10]} 13. Qd2 {[%clk 0:02:15]}  Ne4 {[%clk 0:02:08]} 0-1


[Site "https://www.chess.com"]

[Event "Titled Tuesday Blitz July 4 Late 2023"]
[White "Camacho Collados, Marcos"]
[Black "Rustemov, Alexander"]
[WhiteFideId "2266237"]
[BlackFideId "4119002"]
[WhiteElo "2526"]
[BlackElo "2799"]
[Result "0-1"]
[Round "2"]
[TimeControl "180+2"]
[Date "2023.07.04"]
[WhiteClock "0:00:00"]
[BlackClock "0:00:59"]
[Board "44"]

1. Nf3 {[%clk 0:03:00]}  d5 {[%clk 0:02:59]} 2. g3 {[%clk 0:03:01]}  Nf6 {[%clk 0:02:59]} 3. Bg2 {[%clk 0:03:01]}  Bf5 {[%clk 0:03:00]} 4. c4 {[%clk 0:02:55]}  dxc4 {[%clk 0:02:49]} 5. Qa4+ {[%clk 0:02:51]}  Nbd7 {[%clk 0:02:47]} 6. O-O {[%clk 0:02:44]}  c6 {[%clk 0:02:46]} 7. Qxc4 {[%clk 0:02:42]}  e6 {[%clk 0:02:47]} 8. Nc3 {[%clk 0:02:34]}  Be7 {[%clk 0:02:47]} 9. d3 {[%clk 0:02:30]}  h6 {[%clk 0:02:46]} 10. e4 {[%clk 0:02:28]}  Bh7 {[%clk 0:02:45]} 11. Bf4 {[%clk 0:02:19]}  Nb6 {[%clk 0:02:44]} 12. Qb3 {[%clk 0:02:07]}  Qxd3 {[%clk 0:02:41]} 13. Ne5 {[%clk 0:02:07]}  Qa6 {[%clk 0:02:24]} 14. a4 {[%clk 0:01:25]}  Qa5 {[%clk 0:02:23]} 15. Nc4 {[%clk 0:01:00]}  Qb4 {[%clk 0:02:09]} 16. Qxb4 {[%clk 0:00:55]}  Bxb4 {[%clk 0:02:10]} 17. Nd6+ {[%clk 0:00:38]}  Bxd6 {[%clk 0:02:09]} 18. Bxd6 {[%clk 0:00:39]}  Nc4 {[%clk 0:02:04]} 19. Bc5 {[%clk 0:00:36]}  b6 {[%clk 0:02:02]} 20. Ba3 {[%clk 0:00:13]}  e5 {[%clk 0:01:54]} 21. Rfd1 {[%clk 0:00:07]}  Rd8 {[%clk 0:01:49]} 22. Rxd8+ {[%clk 0:00:02]}  Kxd8 {[%clk 0:01:50]} 23. f3 {[%clk 0:00:02]}  Kc7 {[%clk 0:01:43]} 24. Bf1 {[%clk 0:00:02]}  Nxa3 {[%clk 0:01:40]} 25. Rxa3 {[%clk 0:00:03]}  a5 {[%clk 0:01:39]} 26. Ra1 {[%clk 0:00:02]}  Nd7 {[%clk 0:01:38]} 27. Rc1 {[%clk 0:00:03]}  Nc5 {[%clk 0:01:38]} 28. Bc4 {[%clk 0:00:03]}  f6 {[%clk 0:01:37]} 29. Kf2 {[%clk 0:00:04]}  Rd8 {[%clk 0:01:36]} 30. Ke3 {[%clk 0:00:04]}  Rd4 {[%clk 0:01:31]} 31. b3 {[%clk 0:00:02]}  Bg6 {[%clk 0:01:12]} 32. h4 {[%clk 0:00:02]}  Kd6 {[%clk 0:01:02]} 33. Ne2 {[%clk 0:00:02]}  Rxc4 {[%clk 0:00:59]} 34. bxc4 {[%clk 0:00:00]}  Nxa4 {[%clk 0:00:59]} 0-1


[Site "https://www.chess.com"]

[Event "Titled Tuesday Blitz July 4 Late 2023"]
[White "Plat, Vojtech"]
[Black "Principe, Gerson"]
[WhiteFideId "325740"]
[BlackFideId "3804550"]
[WhiteElo "2777"]
[BlackElo "2520"]
[Result "0-1"]
[Round "2"]
[TimeControl "180+2"]
[Date "2023.07.04"]
[WhiteClock "0:02:02"]
[BlackClock "0:00:14"]
[Board "48"]

1. b3 {[%clk 0:03:00]}  d5 {[%clk 0:02:54]} 2. Bb2 {[%clk 0:03:01]}  c6 {[%clk 0:02:55]} 3. e3 {[%clk 0:03:01]}  Bf5 {[%clk 0:02:54]} 4. Nf3 {[%clk 0:03:01]}  e6 {[%clk 0:02:55]} 5. h3 {[%clk 0:03:00]}  Nd7 {[%clk 0:02:54]} 6. Bd3 {[%clk 0:02:59]}  Bxd3 {[%clk 0:02:52]} 7. cxd3 {[%clk 0:03:00]}  Ngf6 {[%clk 0:02:51]} 8. O-O {[%clk 0:03:00]}  Bd6 {[%clk 0:02:51]} 9. d4 {[%clk 0:03:00]}  Qc7 {[%clk 0:02:50]} 10. d3 {[%clk 0:03:00]}  O-O {[%clk 0:02:49]} 11. Nbd2 {[%clk 0:03:00]}  e5 {[%clk 0:02:44]} 12. dxe5 {[%clk 0:03:01]}  Nxe5 {[%clk 0:02:44]} 13. Nxe5 {[%clk 0:03:01]}  Bxe5 {[%clk 0:02:44]} 14. Bxe5 {[%clk 0:03:02]}  Qxe5 {[%clk 0:02:45]} 15. Nf3 {[%clk 0:03:01]}  Qc7 {[%clk 0:02:40]} 16. Qd2 {[%clk 0:03:02]}  a5 {[%clk 0:02:40]} 17. Rfc1 {[%clk 0:03:02]}  Rfe8 {[%clk 0:02:39]} 18. a3 {[%clk 0:03:02]}  Qb6 {[%clk 0:02:31]} 19. Rab1 {[%clk 0:02:58]}  Rac8 {[%clk 0:02:08]} 20. b4 {[%clk 0:02:57]}  axb4 {[%clk 0:02:05]} 21. axb4 {[%clk 0:02:57]}  Qd8 {[%clk 0:02:00]} 22. Nd4 {[%clk 0:02:55]}  Qd7 {[%clk 0:01:59]} 23. Nb3 {[%clk 0:02:54]}  b6 {[%clk 0:01:58]} 24. Rc2 {[%clk 0:02:53]}  Rc7 {[%clk 0:01:57]} 25. Rbc1 {[%clk 0:02:52]}  Rec8 {[%clk 0:01:57]} 26. Rc3 {[%clk 0:02:52]}  Ne8 {[%clk 0:01:50]} 27. Ra1 {[%clk 0:02:37]}  Nd6 {[%clk 0:01:47]} 28. Ra6 {[%clk 0:02:37]}  Nb5 {[%clk 0:01:47]} 29. Rc1 {[%clk 0:02:36]}  Rb8 {[%clk 0:01:47]} 30. Qb2 {[%clk 0:02:34]}  h6 {[%clk 0:01:46]} 31. Qe5 {[%clk 0:02:32]}  Qc8 {[%clk 0:01:37]} 32. Rca1 {[%clk 0:02:30]}  Qe6 {[%clk 0:01:28]} 33. Qf4 {[%clk 0:02:26]}  Qd7 {[%clk 0:01:21]} 34. Nd4 {[%clk 0:02:25]}  Nxd4 {[%clk 0:01:18]} 35. Qxd4 {[%clk 0:02:26]}  c5 {[%clk 0:01:17]} 36. bxc5 {[%clk 0:02:23]}  bxc5 {[%clk 0:01:18]} 37. Qf4 {[%clk 0:02:23]}  c4 {[%clk 0:01:11]} 38. Rd6 {[%clk 0:02:22]}  Qe7 {[%clk 0:00:57]} 39. Rxd5 {[%clk 0:02:21]}  c3 {[%clk 0:00:58]} 40. Rc1 {[%clk 0:02:13]}  c2 {[%clk 0:00:51]} 41. e4 {[%clk 0:02:08]}  Rb1 {[%clk 0:00:47]} 42. Kh2 {[%clk 0:02:08]}  Rxc1 {[%clk 0:00:29]} 43. Qxc1 {[%clk 0:02:09]}  Qb4 {[%clk 0:00:25]} 44. Rd8+ {[%clk 0:02:08]}  Kh7 {[%clk 0:00:25]} 45. Qf4 {[%clk 0:02:08]}  Qe7 {[%clk 0:00:14]} 46. Re8 {[%clk 0:02:07]}  Qc5 {[%clk 0:00:11]} 47. e5 {[%clk 0:02:06]}  Qc6 {[%clk 0:00:06]} 48. e6 {[%clk 0:02:02]}  fxe6 {[%clk 0:00:04]} 49. Qf8 {[%clk 0:02:00]}  c1=Q {[%clk 0:00:03]} 50. Qg8+ {[%clk 0:01:59]}  Kg6 {[%clk 0:00:04]} 51. Rxe6+ {[%clk 0:02:00]}  Qxe6 {[%clk 0:00:03]} 52. Qxe6+ {[%clk 0:02:01]}  Kh7 {[%clk 0:00:04]} 53. Qe4+ {[%clk 0:02:02]}  Kh8 {[%clk 0:00:03]} 54. d4 {[%clk 0:02:02]}  Qg5 {[%clk 0:00:03]} 55. Qe8+ {[%clk 0:02:02]}  Kh7 {[%clk 0:00:03]} 56. Qe4+ {[%clk 0:02:03]}  Qg6 {[%clk 0:00:04]} 57. Qe5 {[%clk 0:02:03]}  Rf7 {[%clk 0:00:04]} 58. f4 {[%clk 0:02:04]}  Qf6 {[%clk 0:00:04]} 59. Qe4+ {[%clk 0:02:04]}  Qf5 {[%clk 0:00:04]} 60. Qxf5+ {[%clk 0:02:03]}  Rxf5 {[%clk 0:00:04]} 61. Kg3 {[%clk 0:02:04]}  Rd5 {[%clk 0:00:05]} 62. Kf3 {[%clk 0:02:04]}  Rxd4 {[%clk 0:00:05]} 63. Ke3 {[%clk 0:02:04]}  Ra4 {[%clk 0:00:06]} 64. g4 {[%clk 0:02:04]}  Ra3+ {[%clk 0:00:07]} 65. Ke4 {[%clk 0:02:05]}  Ra2 {[%clk 0:00:08]} 66. h4 {[%clk 0:02:04]}  Ra4+ {[%clk 0:00:09]} 67. Kf5 {[%clk 0:02:05]}  Ra5+ {[%clk 0:00:10]} 68. Ke4 {[%clk 0:02:05]}  Ra6 {[%clk 0:00:11]} 69. h5 {[%clk 0:02:06]}  Kg8 {[%clk 0:00:11]} 70. f5 {[%clk 0:02:07]}  Kf7 {[%clk 0:00:12]} 71. Kf4 {[%clk 0:02:08]}  Ra5 {[%clk 0:00:13]} 72. g5 {[%clk 0:02:08]}  Ra4+ {[%clk 0:00:13]} 73. Ke5 {[%clk 0:02:02]}  hxg5 {[%clk 0:00:14]} 0-1


[Site "https://www.chess.com"]